{"text_format":"1","workbook":"xlsx","n_sheets":1,"sheets":["Pressupost Projecte Aa"],"not_rendered":{"charts":0,"images":2,"macros":1,"external_links":0,"defined_names":6,"comments":1,"pivot_tables":0},"unopened":[],"bounds":{"document_bytes":16777216,"sheet_cells":100000,"rows_first":2000,"rows_last":500,"rows_between":2000,"halvings":0,"cell_chars":16384,"cell_head_chars":4096},"cells_cut":0,"cells_raw":0,"read":"whole","date_system":"1900"}

{"sheet":"Pressupost Projecte Aa","index":0,"n_rows":136,"n_cols":6,"rows_kept":136,"cut":false,"hidden":false,"merged":[[2,2,3,5],[109,2,109,3],[111,2,111,3]]}
[null,null,null,null,null,"Document bàsic 3"]
[null,null,null,null,null,"Àmbit temàtic \"A\": Creació i Consolidació"]
["Programa de subvencions de l'Ajuntament de Barcelona per a",null,"Modalitat \"Ad\": Digitalització: Facilitar la transformació digital de les empreses ESS"]
["l'enfortimen i reactivació de l'Economia Social i Solidària i el"]
["desenvolupament de projectes que executen l'Estratègia ESS 2030 BCN",null,null,null,null,"Atenció: Cal omplir les cel·les en blanc i si escau afegir les files necessàries "]
[null,null,null,null,null,"Abans d'omplir, consultar anotacions a peu de pàgina "]
[null,null,null,null,null," "]
[null,null,null,null,null," "]
["DADES BÀSIQUES"]
["Nom de la persona física/jurídica",null,null,null,null,"  "]
["NIF de la persona física/jurídica"]
["Nom del projecte subvencionable"]
["Import total del projecte subvencionable"]
["Import imputable a la subvenció municipal"]
["Import de l'aportació / Cofinançament de l'organització",{"$f":"B13-B14","v":0}]
["% de l'import sol·licitat respecte el total del projecte subvencionable",{"$f":"B14/B13","v":{"$error":"#DIV/0!"}}]
["Data inici del projecte subvencionat (dd/mm/aaaa)"]
["Data fi del projecte subvencionat (dd/mm/aaaa)"]
[]
["PREVISIÓ DE DESPESES DEL PROJECTE SUBVENCIONABLE"]
[]
[]
["Partides","Import imputable a la subvenció municipal","Import de l'aportació / Cofinançament de lorganització","Import total del projecte"]
["D.1  Nòmines i seguretat social (règim general o règim d’autònoms) del personal propi  vinculat al projecte subvencionable",{"$f":"SUM(B25:B29)","v":0},{"$f":"SUM(C25:C29)","v":0},{"$f":"SUM(DespesesProjecte[[#This Row],[Import imputable a la subvenció municipal]],DespesesProjecte[[#This Row],[Import de l''aportació / Cofinançament de lorganització]])","v":0}]
[null,null,null,{"$f":"SUM(DespesesProjecte[[#This Row],[Import imputable a la subvenció municipal]],DespesesProjecte[[#This Row],[Import de l''aportació / Cofinançament de lorganització]])","v":0}]
[null,null,null,{"$f":"SUM(DespesesProjecte[[#This Row],[Import imputable a la subvenció municipal]],DespesesProjecte[[#This Row],[Import de l''aportació / Cofinançament de lorganització]])","v":0}]
[null,null,null,{"$f":"SUM(DespesesProjecte[[#This Row],[Import imputable a la subvenció municipal]],DespesesProjecte[[#This Row],[Import de l''aportació / Cofinançament de lorganització]])","v":0}]
[null,null,null,{"$f":"SUM(DespesesProjecte[[#This Row],[Import imputable a la subvenció municipal]],DespesesProjecte[[#This Row],[Import de l''aportació / Cofinançament de lorganització]])","v":0}]
[null,null,null,{"$f":"SUM(DespesesProjecte[[#This Row],[Import imputable a la subvenció municipal]],DespesesProjecte[[#This Row],[Import de l''aportació / Cofinançament de lorganització]])","v":0}]
["TOTAL DE DESPESES DEL PERSONAL (Max 40% de l'import imputable a la subvenció municipal)",{"$f":"SUM(B24)","v":0},{"$f":"SUM(C24)","v":0},{"$f":"SUM(D24)","v":0}]
["D.2  Treballs realitzats per professionals i empreses externes directament vinculades al projecte subvencionable",{"$f":"SUM(B32:B36)","v":0},{"$f":"SUM(C32:C36)","v":0},{"$f":"SUM(DespesesProjecte[[#This Row],[Import imputable a la subvenció municipal]],DespesesProjecte[[#This Row],[Import de l''aportació / Cofinançament de lorganització]])","v":0}]
[null,null,null,{"$f":"SUM(DespesesProjecte[[#This Row],[Import imputable a la subvenció municipal]],DespesesProjecte[[#This Row],[Import de l''aportació / Cofinançament de lorganització]])","v":0}]
[null,null,null,{"$f":"SUM(DespesesProjecte[[#This Row],[Import imputable a la subvenció municipal]],DespesesProjecte[[#This Row],[Import de l''aportació / Cofinançament de lorganització]])","v":0}]
[null,null,null,{"$f":"SUM(DespesesProjecte[[#This Row],[Import imputable a la subvenció municipal]],DespesesProjecte[[#This Row],[Import de l''aportació / Cofinançament de lorganització]])","v":0}]
[null,null,null,{"$f":"SUM(DespesesProjecte[[#This Row],[Import imputable a la subvenció municipal]],DespesesProjecte[[#This Row],[Import de l''aportació / Cofinançament de lorganització]])","v":0}]
[null,null,null,{"$f":"SUM(DespesesProjecte[[#This Row],[Import imputable a la subvenció municipal]],DespesesProjecte[[#This Row],[Import de l''aportació / Cofinançament de lorganització]])","v":0}]
["D.3  Quotes d’inscripció, lloguer de sistemes de software i hardware  i manteniment",{"$f":"SUM(B38:B42)","v":0},{"$f":"SUM(C38:C42)","v":0},{"$f":"SUM(DespesesProjecte[[#This Row],[Import imputable a la subvenció municipal]],DespesesProjecte[[#This Row],[Import de l''aportació / Cofinançament de lorganització]])","v":0}]
[null,null,null,{"$f":"SUM(DespesesProjecte[[#This Row],[Import imputable a la subvenció municipal]],DespesesProjecte[[#This Row],[Import de l''aportació / Cofinançament de lorganització]])","v":0}]
[null,null,null,{"$f":"SUM(DespesesProjecte[[#This Row],[Import imputable a la subvenció municipal]],DespesesProjecte[[#This Row],[Import de l''aportació / Cofinançament de lorganització]])","v":0}]
[null,null,null,{"$f":"SUM(DespesesProjecte[[#This Row],[Import imputable a la subvenció municipal]],DespesesProjecte[[#This Row],[Import de l''aportació / Cofinançament de lorganització]])","v":0}]
[null,null,null,{"$f":"SUM(DespesesProjecte[[#This Row],[Import imputable a la subvenció municipal]],DespesesProjecte[[#This Row],[Import de l''aportació / Cofinançament de lorganització]])","v":0}]
[null,null,null,{"$f":"SUM(DespesesProjecte[[#This Row],[Import imputable a la subvenció municipal]],DespesesProjecte[[#This Row],[Import de l''aportació / Cofinançament de lorganització]])","v":0}]
["TOTAL D'ALTRES DESPESES DIRECTES ",{"$f":"SUM(B31,B37)","v":0},0,{"$f":"SUM(D31,D37)","v":0}]
["TOTAL DESPESES DIRECTES (aquelles que s’identifiquen directament amb el projecte subvencionable)",{"$f":"SUM(B30,B43)","v":0},0,{"$f":"SUM(D30,D43)","v":0}]
["I.1 Personal de suport al projecte",{"$f":"SUM(B46:B50)","v":0},{"$f":"SUM(C46:C50)","v":0},{"$f":"SUM(DespesesProjecte[[#This Row],[Import imputable a la subvenció municipal]],DespesesProjecte[[#This Row],[Import de l''aportació / Cofinançament de lorganització]])","v":0}]
[null,null,null,{"$f":"SUM(DespesesProjecte[[#This Row],[Import imputable a la subvenció municipal]],DespesesProjecte[[#This Row],[Import de l''aportació / Cofinançament de lorganització]])","v":0}]
[null,null,null,{"$f":"SUM(DespesesProjecte[[#This Row],[Import imputable a la subvenció municipal]],DespesesProjecte[[#This Row],[Import de l''aportació / Cofinançament de lorganització]])","v":0}]
[null,null,null,{"$f":"SUM(DespesesProjecte[[#This Row],[Import imputable a la subvenció municipal]],DespesesProjecte[[#This Row],[Import de l''aportació / Cofinançament de lorganització]])","v":0}]
[null,null,null,{"$f":"SUM(DespesesProjecte[[#This Row],[Import imputable a la subvenció municipal]],DespesesProjecte[[#This Row],[Import de l''aportació / Cofinançament de lorganització]])","v":0}]
[null,null,null,{"$f":"SUM(DespesesProjecte[[#This Row],[Import imputable a la subvenció municipal]],DespesesProjecte[[#This Row],[Import de l''aportació / Cofinançament de lorganització]])","v":0}]
["I.2 Assegurances",{"$f":"SUM(B52:B56)","v":0},{"$f":"SUM(C52:C56)","v":0},{"$f":"SUM(DespesesProjecte[[#This Row],[Import imputable a la subvenció municipal]],DespesesProjecte[[#This Row],[Import de l''aportació / Cofinançament de lorganització]])","v":0}]
[null,null,null,{"$f":"SUM(DespesesProjecte[[#This Row],[Import imputable a la subvenció municipal]],DespesesProjecte[[#This Row],[Import de l''aportació / Cofinançament de lorganització]])","v":0}]
[null,null,null,{"$f":"SUM(DespesesProjecte[[#This Row],[Import imputable a la subvenció municipal]],DespesesProjecte[[#This Row],[Import de l''aportació / Cofinançament de lorganització]])","v":0}]
[null,null,null,{"$f":"SUM(DespesesProjecte[[#This Row],[Import imputable a la subvenció municipal]],DespesesProjecte[[#This Row],[Import de l''aportació / Cofinançament de lorganització]])","v":0}]
[null,null,null,{"$f":"SUM(DespesesProjecte[[#This Row],[Import imputable a la subvenció municipal]],DespesesProjecte[[#This Row],[Import de l''aportació / Cofinançament de lorganització]])","v":0}]
[null,null,null,{"$f":"SUM(DespesesProjecte[[#This Row],[Import imputable a la subvenció municipal]],DespesesProjecte[[#This Row],[Import de l''aportació / Cofinançament de lorganització]])","v":0}]
["I.3 Amortització",{"$f":"SUM(B58:B62)","v":0},{"$f":"SUM(C58:C62)","v":0},{"$f":"SUM(DespesesProjecte[[#This Row],[Import imputable a la subvenció municipal]],DespesesProjecte[[#This Row],[Import de l''aportació / Cofinançament de lorganització]])","v":0}]
[null,null,null,{"$f":"SUM(DespesesProjecte[[#This Row],[Import imputable a la subvenció municipal]],DespesesProjecte[[#This Row],[Import de l''aportació / Cofinançament de lorganització]])","v":0}]
[null,null,null,{"$f":"SUM(DespesesProjecte[[#This Row],[Import imputable a la subvenció municipal]],DespesesProjecte[[#This Row],[Import de l''aportació / Cofinançament de lorganització]])","v":0}]
[null,null,null,{"$f":"SUM(DespesesProjecte[[#This Row],[Import imputable a la subvenció municipal]],DespesesProjecte[[#This Row],[Import de l''aportació / Cofinançament de lorganització]])","v":0}]
[null,null,null,{"$f":"SUM(DespesesProjecte[[#This Row],[Import imputable a la subvenció municipal]],DespesesProjecte[[#This Row],[Import de l''aportació / Cofinançament de lorganització]])","v":0}]
[null,null,null,{"$f":"SUM(DespesesProjecte[[#This Row],[Import imputable a la subvenció municipal]],DespesesProjecte[[#This Row],[Import de l''aportació / Cofinançament de lorganització]])","v":0}]
["I.4 Lloguer de béns immobles",{"$f":"SUM(B64:B68)","v":0},{"$f":"SUM(C64:C68)","v":0},{"$f":"SUM(DespesesProjecte[[#This Row],[Import imputable a la subvenció municipal]],DespesesProjecte[[#This Row],[Import de l''aportació / Cofinançament de lorganització]])","v":0}]
[null,null,null,{"$f":"SUM(DespesesProjecte[[#This Row],[Import imputable a la subvenció municipal]],DespesesProjecte[[#This Row],[Import de l''aportació / Cofinançament de lorganització]])","v":0}]
[null,null,null,{"$f":"SUM(DespesesProjecte[[#This Row],[Import imputable a la subvenció municipal]],DespesesProjecte[[#This Row],[Import de l''aportació / Cofinançament de lorganització]])","v":0}]
[null,null,null,{"$f":"SUM(DespesesProjecte[[#This Row],[Import imputable a la subvenció municipal]],DespesesProjecte[[#This Row],[Import de l''aportació / Cofinançament de lorganització]])","v":0}]
[null,null,null,{"$f":"SUM(DespesesProjecte[[#This Row],[Import imputable a la subvenció municipal]],DespesesProjecte[[#This Row],[Import de l''aportació / Cofinançament de lorganització]])","v":0}]
[null,null,null,{"$f":"SUM(DespesesProjecte[[#This Row],[Import imputable a la subvenció municipal]],DespesesProjecte[[#This Row],[Import de l''aportació / Cofinançament de lorganització]])","v":0}]
["I.5 Adquisició de materials i béns consumibles parcialment imputables al projecte",{"$f":"SUM(B70:B74)","v":0},{"$f":"SUM(C70:C74)","v":0},{"$f":"SUM(DespesesProjecte[[#This Row],[Import imputable a la subvenció municipal]],DespesesProjecte[[#This Row],[Import de l''aportació / Cofinançament de lorganització]])","v":0}]
[null,null,null,{"$f":"SUM(DespesesProjecte[[#This Row],[Import imputable a la subvenció municipal]],DespesesProjecte[[#This Row],[Import de l''aportació / Cofinançament de lorganització]])","v":0}]
[null,null,null,{"$f":"SUM(DespesesProjecte[[#This Row],[Import imputable a la subvenció municipal]],DespesesProjecte[[#This Row],[Import de l''aportació / Cofinançament de lorganització]])","v":0}]
[null,null,null,{"$f":"SUM(DespesesProjecte[[#This Row],[Import imputable a la subvenció municipal]],DespesesProjecte[[#This Row],[Import de l''aportació / Cofinançament de lorganització]])","v":0}]
[null,null,null,{"$f":"SUM(DespesesProjecte[[#This Row],[Import imputable a la subvenció municipal]],DespesesProjecte[[#This Row],[Import de l''aportació / Cofinançament de lorganització]])","v":0}]
[null,null,null,{"$f":"SUM(DespesesProjecte[[#This Row],[Import imputable a la subvenció municipal]],DespesesProjecte[[#This Row],[Import de l''aportació / Cofinançament de lorganització]])","v":0}]
["I.6 Manteniment d’edificis i/o instal·lacions",{"$f":"SUM(B76:B80)","v":0},{"$f":"SUM(C76:C80)","v":0},{"$f":"SUM(DespesesProjecte[[#This Row],[Import imputable a la subvenció municipal]],DespesesProjecte[[#This Row],[Import de l''aportació / Cofinançament de lorganització]])","v":0}]
[null,null,null,{"$f":"SUM(DespesesProjecte[[#This Row],[Import imputable a la subvenció municipal]],DespesesProjecte[[#This Row],[Import de l''aportació / Cofinançament de lorganització]])","v":0}]
[null,null,null,{"$f":"SUM(DespesesProjecte[[#This Row],[Import imputable a la subvenció municipal]],DespesesProjecte[[#This Row],[Import de l''aportació / Cofinançament de lorganització]])","v":0}]
[null,null,null,{"$f":"SUM(DespesesProjecte[[#This Row],[Import imputable a la subvenció municipal]],DespesesProjecte[[#This Row],[Import de l''aportació / Cofinançament de lorganització]])","v":0}]
[null,null,null,{"$f":"SUM(DespesesProjecte[[#This Row],[Import imputable a la subvenció municipal]],DespesesProjecte[[#This Row],[Import de l''aportació / Cofinançament de lorganització]])","v":0}]
[null,null,null,{"$f":"SUM(DespesesProjecte[[#This Row],[Import imputable a la subvenció municipal]],DespesesProjecte[[#This Row],[Import de l''aportació / Cofinançament de lorganització]])","v":0}]
["I.7 Comunicacions (telèfon, correus, connexió a internet)",{"$f":"SUM(B82:B86)","v":0},{"$f":"SUM(C82:C86)","v":0},{"$f":"SUM(DespesesProjecte[[#This Row],[Import imputable a la subvenció municipal]],DespesesProjecte[[#This Row],[Import de l''aportació / Cofinançament de lorganització]])","v":0}]
[null,null,null,{"$f":"SUM(DespesesProjecte[[#This Row],[Import imputable a la subvenció municipal]],DespesesProjecte[[#This Row],[Import de l''aportació / Cofinançament de lorganització]])","v":0}]
[null,null,null,{"$f":"SUM(DespesesProjecte[[#This Row],[Import imputable a la subvenció municipal]],DespesesProjecte[[#This Row],[Import de l''aportació / Cofinançament de lorganització]])","v":0}]
[null,null,null,{"$f":"SUM(DespesesProjecte[[#This Row],[Import imputable a la subvenció municipal]],DespesesProjecte[[#This Row],[Import de l''aportació / Cofinançament de lorganització]])","v":0}]
[null,null,null,{"$f":"SUM(DespesesProjecte[[#This Row],[Import imputable a la subvenció municipal]],DespesesProjecte[[#This Row],[Import de l''aportació / Cofinançament de lorganització]])","v":0}]
[null,null,null,{"$f":"SUM(DespesesProjecte[[#This Row],[Import imputable a la subvenció municipal]],DespesesProjecte[[#This Row],[Import de l''aportació / Cofinançament de lorganització]])","v":0}]
["I.8 Despeses financeres",{"$f":"SUM(B88:B92)","v":0},{"$f":"SUM(C88:C92)","v":0},{"$f":"SUM(DespesesProjecte[[#This Row],[Import imputable a la subvenció municipal]],DespesesProjecte[[#This Row],[Import de l''aportació / Cofinançament de lorganització]])","v":0}]
[null,null,null,{"$f":"SUM(DespesesProjecte[[#This Row],[Import imputable a la subvenció municipal]],DespesesProjecte[[#This Row],[Import de l''aportació / Cofinançament de lorganització]])","v":0}]
[null,null,null,{"$f":"SUM(DespesesProjecte[[#This Row],[Import imputable a la subvenció municipal]],DespesesProjecte[[#This Row],[Import de l''aportació / Cofinançament de lorganització]])","v":0}]
[null,null,null,{"$f":"SUM(DespesesProjecte[[#This Row],[Import imputable a la subvenció municipal]],DespesesProjecte[[#This Row],[Import de l''aportació / Cofinançament de lorganització]])","v":0}]
[null,null,null,{"$f":"SUM(DespesesProjecte[[#This Row],[Import imputable a la subvenció municipal]],DespesesProjecte[[#This Row],[Import de l''aportació / Cofinançament de lorganització]])","v":0}]
[null,null,null,{"$f":"SUM(DespesesProjecte[[#This Row],[Import imputable a la subvenció municipal]],DespesesProjecte[[#This Row],[Import de l''aportació / Cofinançament de lorganització]])","v":0}]
["I.9 Subministraments",{"$f":"SUM(B94:B98)","v":0},{"$f":"SUM(C94:C98)","v":0},{"$f":"SUM(DespesesProjecte[[#This Row],[Import imputable a la subvenció municipal]],DespesesProjecte[[#This Row],[Import de l''aportació / Cofinançament de lorganització]])","v":0}]
[null,null,null,{"$f":"SUM(DespesesProjecte[[#This Row],[Import imputable a la subvenció municipal]],DespesesProjecte[[#This Row],[Import de l''aportació / Cofinançament de lorganització]])","v":0}]
[null,null,null,{"$f":"SUM(DespesesProjecte[[#This Row],[Import imputable a la subvenció municipal]],DespesesProjecte[[#This Row],[Import de l''aportació / Cofinançament de lorganització]])","v":0}]
[null,null,null,{"$f":"SUM(DespesesProjecte[[#This Row],[Import imputable a la subvenció municipal]],DespesesProjecte[[#This Row],[Import de l''aportació / Cofinançament de lorganització]])","v":0}]
[null,null,null,{"$f":"SUM(DespesesProjecte[[#This Row],[Import imputable a la subvenció municipal]],DespesesProjecte[[#This Row],[Import de l''aportació / Cofinançament de lorganització]])","v":0}]
[null,null,null,{"$f":"SUM(DespesesProjecte[[#This Row],[Import imputable a la subvenció municipal]],DespesesProjecte[[#This Row],[Import de l''aportació / Cofinançament de lorganització]])","v":0}]
["I.10 Treball realitzat per altres empreses, parcialment imputables al projecte (neteja, seguretat...)",{"$f":"SUM(B100:B104)","v":0},{"$f":"SUM(C100:C104)","v":0},{"$f":"SUM(DespesesProjecte[[#This Row],[Import imputable a la subvenció municipal]],DespesesProjecte[[#This Row],[Import de l''aportació / Cofinançament de lorganització]])","v":0}]
[null,null,null,{"$f":"SUM(DespesesProjecte[[#This Row],[Import imputable a la subvenció municipal]],DespesesProjecte[[#This Row],[Import de l''aportació / Cofinançament de lorganització]])","v":0}]
[null,null,null,{"$f":"SUM(DespesesProjecte[[#This Row],[Import imputable a la subvenció municipal]],DespesesProjecte[[#This Row],[Import de l''aportació / Cofinançament de lorganització]])","v":0}]
[null,null,null,{"$f":"SUM(DespesesProjecte[[#This Row],[Import imputable a la subvenció municipal]],DespesesProjecte[[#This Row],[Import de l''aportació / Cofinançament de lorganització]])","v":0}]
[null,null,null,{"$f":"SUM(DespesesProjecte[[#This Row],[Import imputable a la subvenció municipal]],DespesesProjecte[[#This Row],[Import de l''aportació / Cofinançament de lorganització]])","v":0}]
[null,null,null,{"$f":"SUM(DespesesProjecte[[#This Row],[Import imputable a la subvenció municipal]],DespesesProjecte[[#This Row],[Import de l''aportació / Cofinançament de lorganització]])","v":0}]
["TOTAL DESPESES INDIRECTES (Max 10% de l'import imputable a la subvenció municipal)",{"$f":"SUM(B45,B51,B57,B63,B69,B75,B81,B87,B93,B99)","v":0},{"$f":"SUM(C45,C51,C57,C63,C69,C75,C81,C87,C93,C99)","v":0},{"$f":"SUM(D91,D104)","v":0}]
["TOTAL DE DESPESES PREVISTES",{"$f":"SUM(B44+B105)","v":0},{"$f":"SUM(C44+C105)","v":0},{"$f":"SUM(D44+D105)","v":0}]
[]
["Barcelona, "]
[]
["Segell de l'organització",null,"Signatura del representat legal de l'organització"]
[]
["Atenció: En cas de persones jurídiques no signeu aquest document ara.\nMés endavant signareu digitalment aquest document",null,"Atenció: En cas de registre físic per les persones físiques\nAfegiu la data i la signatura de la persona representant legal de l’organització aquí per tal que aquest document tingui validesa legal"]
[]
["1.  La quantia de la subvenció atorgada no superarà el 80% de la despesa total del projecte a subvencionar. "]
["2.  L'import màxim de subvenció per a la modalitat \"d\" de l’àmbit temàtic de Digitalització (Ad) és 10.000€."]
["3.  En el cas que la sol·licitud presentada sobrepassi l’import màxim, es considerarà com a import sol·licitat el màxim de l'establert a la convocatòria."]
["4.  Es limita amb un màxim del 40% l’import de la subvenció per a despeses de personal propi que participa de forma directa i degudament al projecte subvencionable."]
["5.  Només amb caràcter excepcional, els/les empresaris/ies individuals que no tinguin persones treballadores en plantilla"]
["     podran acreditar els seus treballs mitjançant una declaració responsable acompanyada de les declaracions IRPF (model 130) de l’exercici corrent."]
["     El preu/hora imputat al projecte subvencionat no podrà superar la quantitat resultant de dividir els rendiments anuals nets de l’empresari/a individual per 1800."]
["6. Són imputables en la modalitat \"Ad\" les despeses indirectes, detallades en l’apartat 13.3. de les bases reguladores; amb un màxim del 10% de l’import de la subvenció:"]
["- Personal de suport al projecte"]
["- Assegurances"]
["- Amortització"]
["- Lloguer de béns immobles"]
["- Adquisició de materials i béns consumibles parcialment imputables al projecte."]
["- Manteniment d’edificis i/o instal·lacions."]
["- Comunicacions (telèfon, correus, connexió a internet)"]
["- Despeses financeres"]
["- Subministraments"]
["- Treball realitzat per altres empreses, parcialment imputables al projecte (neteja, seguretat...)"]
["7. El caràcter subvencionable de la despesa d'amortització estarà subjecte a les condicions\nsegüents:"]
["- que les subvencions no hagin contribuït a la compra dels béns."]
["- que l'amortització es calculi de conformitat amb les normes de comptabilitat generalment acceptades."]
["- que el cost es refereixi al període subvencionable."]
["8. Altres despeses que s'indiquin a la convocatòria."]